fUSD/lending_fUSD_20240511
["ID","MTS","AMOUNT","RATE_DAILY","PERIOD"]
[326827436,1715465437944,-15601.70113214,0.00012999,2]
[326827437,1715465438006,-2952.33901784,0.00012999,2]
[326827443,1715465440135,-17832.19346245,0.00012999,2]
[326827444,1715465440144,-4993.71164353,0.00012999,2]
[326827445,1715465440153,-160.0,0.00012999,2]
[326827446,1715465440162,-275940.87069736,0.00013,2]
[326827447,1715465440170,-327374.67760697,0.00013,2]
[326827448,1715465440231,-13502.67315817,0.00013,2]
[326827449,1715465440245,-2251.8696414,0.00013,2]
[326827450,1715465440256,-2489.84600004,0.00013,2]
[326827481,1715465443508,-3454.38078348,0.00013,2]
[326827482,1715465443519,-833456.12037727,0.00013,2]
[326827522,1715465446157,-370.68594693,0.00012999,2]
[326827523,1715465446166,-233.24093604,0.00013,2]
[326827524,1715465446178,-544.85942525,0.00013,2]
[326827526,1715465446289,-339.85302779,0.00013,2]
[326827530,1715466075236,-150.0,0.00011312,2]
[326827531,1715466103884,-15717.2156,0.00011313,2]
[326827532,1715466138442,1947.30669165,0.00011312,2]
[326827543,1715466632441,-262.8,0.00011957,2]
[326827544,1715466632450,-936.0,0.00011957,2]
[326827545,1715466632459,-250.0,0.00011964,2]
[326827546,1715466632468,-250.0,0.00011967,2]
[326827547,1715466632477,-160.0,0.00012017,2]
[326827549,1715466632485,-200.0,0.0001208,2]
[326827551,1715466632494,-1440.22376926,0.00012419,2]
[326827560,1715466632573,-836.49132474,0.00012419,2]
[326827562,1715466632582,-5948.01887835,0.00012419,2]
[326827563,1715466632594,-5103.04208465,0.00012419,2]
[326827564,1715466632603,-189.756362,0.00012419,2]
[326827565,1715466632613,-165.520287,0.00012419,2]
[326827566,1715466632622,-196.920011,0.00012419,2]
[326827567,1715466632631,-1206.822274,0.00012419,2]
[326827568,1715466632641,-175.095977,0.00012419,2]
[326827569,1715466632650,-2276.715094,0.00012574,2]
[326827570,1715466632659,-1957.53567062,0.00012574,2]
[326827572,1715466632670,-1652.31001679,0.00012574,2]
[326827573,1715466632681,-2514.71600352,0.00012574,2]
[326827574,1715466632693,-2248.99689501,0.00012574,2]
[326827575,1715466632704,-627.0,0.00012574,2]
[326827576,1715466632716,-1047.42676983,0.00012574,2]
[326827577,1715466632732,-363.2425254,0.00012574,2]
[326827578,1715466632744,-639.83308183,0.00012574,2]
[326827579,1715466632753,-1196.94091663,0.00012574,2]
[326827580,1715466632765,-9.88135737,0.00012574,2]
[326827581,1715466632774,-414.85,0.000126,2]
[326827582,1715466632783,-351.39,0.000126,2]
[326827583,1715466632792,-300.0,0.000126,2]
[326827584,1715466632802,-351.39,0.000126,2]
[326827585,1715466632812,-351.39,0.000126,2]
[326827586,1715466632821,-348.79,0.000126,2]
[326827587,1715466632830,-499.99,0.000126,2]
[326827588,1715466632840,-150.99,0.000126,2]
[326827589,1715466632848,-1291.37322051,0.00012729,2]
[326827590,1715466632859,-985.34187349,0.00012729,2]
[326827591,1715466632868,-1025.80672851,0.00012729,2]
[326827592,1715466632879,-342.93404351,0.00012729,2]
[326827593,1715466632910,-1297.02003697,0.00012729,2]
[326827594,1715466632922,-449.84035098,0.00012729,2]
[326827595,1715466632933,-289.3455407,0.00012729,2]
[326827596,1715466632944,-7646.11426233,0.00012729,2]
[326827597,1715466632953,-1206.822274,0.00012729,2]
[326827598,1715466632963,-165.520287,0.00012729,2]
[326827599,1715466632972,-2276.715094,0.00012884,2]
[326827600,1715466632981,-487.81144267,0.00012884,2]
[326827604,1715466638126,-0.0043324,0.00011989,2]
[326827605,1715466638137,-948.70512469,0.00011989,2]
[326827606,1715466638148,-760.0,0.00011989,2]
[326827608,1715466638379,-0.18281855,0.00011989,2]
[326827609,1715466638391,-548.09566506,0.00011989,2]
[326827612,1715466640432,-995.51991162,0.00011989,2]
[326827613,1715466640495,-947.30669165,0.00011989,2]
[326827624,1715466643700,-395.40545603,0.00011989,2]
[326827625,1715466643710,-1004.79470547,0.00012884,2]
[326827626,1715466643724,-9558.45481486,0.00012884,2]
[326827627,1715466643733,-1206.822274,0.00012884,2]
[326827628,1715466643743,-847.0471,0.00012894,2]
[326827629,1715466643752,-269.33,0.00012895,2]
[326827630,1715466643763,-200.0,0.00012896,2]
[326827631,1715466643772,-6567.4077,0.000129,2]
[326827632,1715466643781,-5707.9215,0.000129,2]
[326827633,1715466643790,-5962.98656289,0.000129,2]
[326827634,1715466643801,-3716.0939,0.000129,2]
[326827635,1715466643810,-970.53779711,0.000129,2]
[326827636,1715466643820,-191.16953814,0.000129,2]
[326827637,1715466643830,-391.20429452,0.000129,2]
[326827638,1715466643840,-173.31328606,0.000129,2]
[326827639,1715466643851,-454.78471923,0.000129,2]
[326827640,1715466643860,-800.0,0.00012986,2]
[326827641,1715466643870,-800.0,0.00012986,2]
[326827642,1715466643880,-150.78,0.0001299,2]
[326827643,1715466643890,-2712.285,0.00012994,2]
[326827644,1715466643899,-207.15813411,0.00012998,2]
[326827645,1715466643909,-537.88108423,0.00012998,2]
[326827646,1715466643918,-655.82645492,0.00012998,2]
[326827647,1715466643928,-2408.83413056,0.00012999,2]
[326827648,1715466643937,-2106.50964919,0.00012999,2]
[326827649,1715466643946,-155.42457923,0.00012999,2]
[326827650,1715466643956,-4272.16693787,0.00012999,2]
[326827651,1715466643966,-1066.94921335,0.00012999,2]
[326827652,1715466643975,-3024.88433628,0.00012999,2]
[326827653,1715466643986,-262.75159511,0.00012999,2]
[326827654,1715466643995,-2325.82841742,0.00012999,2]
[326827655,1715466644005,-1240.10044682,0.00012999,2]
[326827656,1715466644014,-150.0,0.00012999,2]
[326827657,1715466644024,-248346.78362763,0.00013,2]
[326827658,1715466644033,-112833.87739101,0.00013,2]
[326827659,1715466644043,-38223.5039098,0.00013,2]
[326827660,1715466644055,-442388.13896767,0.00013,2]
[326827661,1715466644064,-188.77835514,0.00013,2]
[326827662,1715466644075,-414.3152672,0.00013,2]
[326827663,1715466644084,-2100.0,0.00013,2]
[326827664,1715466644096,-163.21884329,0.00013,2]
[326827665,1715466644105,-332784.07397783,0.00013,2]
[326827666,1715466644116,-18036.58510145,0.00013,2]
[326827667,1715466644125,-179.93576879,0.00013,2]
[326827668,1715466644134,-815239.59950703,0.00013,2]
[326827669,1715466644144,-398.83620363,0.00013,2]
[326827670,1715466644198,-401.11099741,0.00012998,2]
[326827671,1715466644208,-566.3328146,0.00013,2]
[326827672,1715466644219,-2068.35907027,0.00013,2]
[326827673,1715466644230,-4223.88782054,0.00013,2]
[326827674,1715466644264,-629.23,0.00013,2]
[326827675,1715466646106,-1193.96978971,0.00013,2]
[326827676,1715466646118,-674.79429573,0.00013,2]
[326827677,1715466646256,-1594.95663513,0.00013,2]
[326827678,1715466646268,-617.96318409,0.00013,2]
[326827679,1715466646280,-677.99999947,0.00013,2]
[326827680,1715466646291,-785.67779154,0.00013,2]
[326827681,1715466646302,-393.85,0.00013,2]
[326827682,1715466646313,-3619.36964951,0.00013,2]
[326827683,1715466646324,-1458.83968283,0.00013,2]
[326827684,1715466646334,-358.2385076,0.00013,2]
[326827685,1715466646347,-495.411,0.00013,2]
[326827686,1715466646473,-994.43474316,0.00013,2]
[326827687,1715466646484,-20443.09458306,0.00013,2]
[326827688,1715466646495,-1018.3,0.00013,2]
[326827689,1715466646506,-660.02,0.00013,2]
[326827690,1715466646517,-383.87296915,0.00013,2]
[326827691,1715466646553,-4788.38967729,0.00013,2]
[326827692,1715466646564,-1954.38991851,0.00013,2]
[326827693,1715466646576,-14582.43468,0.00013,2]
[326827694,1715466646587,-35885.226265,0.00013,2]
[326827695,1715466646599,-476.34180863,0.00013,2]
[326827697,1715466646610,-489.02686996,0.00013,2]
[326827698,1715466646621,-8519.10173838,0.00013,2]
[326827699,1715466646636,-5237.00829475,0.00013,2]
[326827700,1715466646921,-13103.56177043,0.00013,2]
[326827701,1715466646932,-3972.0,0.00013,2]
[326827702,1715466658597,2185.47770835,0.00011312,2]
[326827708,1715466702401,502.83058101,0.00010181,2]
[326827714,1715466876532,190.12215853,0.00010181,2]
[326827715,1715466936737,409.37028994,0.00010181,2]
[326827716,1715466948805,503.75860638,0.00010181,2]
[326827717,1715466972380,7510.54701635,0.00010181,2]
[326827718,1715466990535,7506.20849129,0.00010181,2]
[326827719,1715466999658,551.86154287,0.00025,120]
[326827723,1715467521397,688.115545,0.00025,120]
[326827729,1715467832334,-1653.54478479,0.00011311,2]
[326827731,1715467832507,-1372.01043873,0.00011311,2]
[326827732,1715467832520,-150.0,0.00011311,2]
[326827733,1715467832530,-353.09700863,0.00011312,2]
[326827734,1715467832684,-281.63428196,0.00011312,2]
[326827738,1715467832696,-377.14468412,0.00011312,2]
[326827741,1715467832707,-486.93,0.00011312,2]
[326827744,1715467832719,-1713.30000046,0.00011312,2]
[326827792,1715467838373,-1573.41555,0.00011312,2]
[326827795,1715467838573,-313.27,0.00011312,2]
[326827796,1715467838586,-9303.94608422,0.00011312,2]
[326827797,1715467838596,-560.13940762,0.00011312,2]
[326827798,1715467838606,-179.93576879,0.00011312,2]
[326827799,1715467838615,-3231.22,0.00011833,2]
[326827800,1715467838625,-250.0,0.00011833,2]
[326827801,1715467838634,-250.0,0.00011834,2]
[326827802,1715467838644,-748.8,0.00011838,2]
[326827803,1715467838653,-339.57986419,0.00011861,2]
[326827804,1715467838664,-262.65011809,0.00011861,2]
[326827805,1715467838676,-25.02001772,0.00011861,2]
[326827806,1715467838686,-251.2,0.00012125,2]
[326827807,1715467838696,-164.25,0.00012144,2]
[326827808,1715467838706,-654.1384028,0.00012345,2]
[326827809,1715467838715,-299.99,0.00012442,2]
[326827810,1715467838725,-210.0,0.00012442,2]
[326827811,1715467838735,-499.99,0.00012637,2]
[326827812,1715467838745,-1560.65973711,0.00012681,2]
[326827813,1715467838755,-150.0,0.00012729,2]
[326827814,1715467838765,-150.0,0.00012731,2]
[326827815,1715467838775,-150.0,0.00012733,2]
[326827816,1715467838784,-150.0,0.0001275,2]
[326827817,1715467838793,-150.0,0.00012757,2]
[326827818,1715467838802,-150.0,0.00012763,2]
[326827819,1715467838812,-150.0,0.00012802,2]
[326827820,1715467838821,-150.0,0.00012803,2]
[326827821,1715467838831,-33.7232756,0.00012822,2]
[326827822,1715467838843,-116.2767244,0.00012822,2]
[326827823,1715467838852,-150.0,0.0001284,2]
[326827824,1715467838861,-150.0,0.00012845,2]
[326827825,1715467838870,-150.0,0.00012861,2]
[326827826,1715467838880,-178.02079672,0.00012869,2]
[326827827,1715467838889,-200.0,0.00012896,2]
[326827828,1715467838898,-150.0,0.00012896,2]
[326827829,1715467838908,-500.0,0.000129,2]
[326827830,1715467838918,-6216.90105139,0.000129,2]
[326827831,1715467838927,-849.22057248,0.000129,2]
[326827832,1715467838937,-152.7640766,0.000129,2]
[326827833,1715467838946,-591.14707841,0.000129,2]
[326827834,1715467838956,-360.03790271,0.000129,2]
[326827835,1715467838965,-213.84356723,0.000129,2]
[326827836,1715467838974,-2417.3201572,0.000129,2]
[326827837,1715467838984,-355.48990998,0.000129,2]
[326827838,1715467838994,-179.59128941,0.000129,2]
[326827839,1715467839004,-150.0,0.0001293,2]
[326827840,1715467839013,-150.0,0.00012931,2]
[326827842,1715467839023,-150.0,0.0001294,2]
[326827843,1715467839033,-150.0,0.00012961,2]
[326827844,1715467839042,-150.0,0.00012965,2]
[326827845,1715467839052,-150.0,0.00012968,2]
[326827846,1715467839061,-150.0,0.00012969,2]
[326827848,1715467839071,-800.0,0.00012986,2]
[326827850,1715467839080,-800.0,0.00012986,2]
[326827852,1715467839090,-150.0,0.00012988,2]
[326827853,1715467839100,-150.78,0.0001299,2]
[326827854,1715467839109,-150.78,0.0001299,2]
[326827855,1715467839119,-9038.852239,0.00012995,2]
[326827856,1715467839128,-1850.01916829,0.00012995,2]
[326827857,1715467839141,-777.60534531,0.00012995,2]
[326827858,1715467839150,-364.50047549,0.00012998,2]
[326827859,1715467839159,-622.8941792,0.00012998,2]
[326827860,1715467839173,-1375.40395648,0.00012998,2]
[326827861,1715467839182,-782.13638794,0.00012998,2]
[326827862,1715467839192,-4557.19925256,0.00012998,2]
[326827863,1715467839326,-429.17891897,0.00012998,2]
[326827864,1715467839341,-6464.81562869,0.00012998,2]
[326827865,1715467839350,-4642.54615033,0.00013,2]
[326827866,1715467839361,-1940.94509564,0.00013,2]
[326827867,1715467839373,-7969.17193469,0.00013,2]
[326827868,1715467839384,-3131.87472,0.00013,2]
[326827869,1715467839395,-2076.48894511,0.00013,2]
[326827870,1715467839405,-901.19631038,0.00013,2]
[326827871,1715467839417,-2005.27742039,0.00013,2]
[326827872,1715467839429,-3064.23331078,0.00013,2]
[326827873,1715467839440,-8766.76781148,0.00013,2]
[326827874,1715467839452,-652.2519,0.00013,2]
[326827875,1715467839463,-1814.56851,0.00013,2]
[326827876,1715467839474,-400.0,0.00013,2]
[326827877,1715467839485,-3055.35126391,0.00013,2]
[326827878,1715467839496,-319.395,0.00013,2]
[326827879,1715467839508,-813.64995,0.00013,2]
[326827881,1715467840739,-1036.30141179,0.00013,2]
[326827882,1715467840750,-180922.08553037,0.00013,2]
[326827883,1715467840760,-347565.83622725,0.00013,2]
[326827884,1715467840773,-27403.13146415,0.00013,2]
[326827885,1715467840784,-22596.86853585,0.00013,2]
[326827886,1715467840891,-367.12897739,0.00013,2]
[326827887,1715467841837,-963.73178324,0.00013,2]
[326827888,1715467841850,-28527.83861601,0.00013,2]
[326827889,1715467841859,-255556.57331494,0.00013,2]
[326827890,1715467841871,-598.11777428,0.00013,2]
[326827898,1715467843665,-95312.65161794,0.00013,2]
[326827899,1715467843675,-1029.92871859,0.00013,2]
[326827900,1715467843684,-336.75213487,0.00013,2]
[326827901,1715467843693,-2000.0,0.00013,2]
[326827902,1715467843702,-220.0,0.00013,2]
[326827903,1715467843712,-206.0,0.00013,2]
[326827904,1715467843721,-188.77835514,0.00013,2]
[326827905,1715467843731,-343.45363572,0.00013,2]
[326827906,1715467843740,-734472.69431781,0.00013,2]
[326827907,1715467843751,-4013.72075502,0.00013,2]
[326827908,1715467843762,-6308.31541324,0.00013,2]
[326827909,1715467843773,-3499.999993,0.00013,2]
[326827910,1715467843784,-1367.25011,0.00013,2]
[326827911,1715467843795,-1010.5000025,0.00013,2]
[326827912,1715467843807,-1032.58964787,0.00013,2]
[326827913,1715467843854,-6287.050306,0.00013,2]
[326827982,1715467846575,-491.92205385,0.00013,2]
[326827983,1715467846586,-701.49771762,0.00013,2]
[326827984,1715467846598,-2980.62715847,0.00013,2]
[326827985,1715467846609,-2486.86760694,0.00013,2]
[326827986,1715467846820,-644.70431179,0.00013,2]
[326827998,1715469031897,-500.77266238,0.00011606,2]
[326827999,1715469031908,-347.96815075,0.00011606,2]
[326828000,1715469031919,-2176.81441039,0.00011606,2]
[326828001,1715469031929,-1552.54585109,0.00011607,2]
[326828002,1715469031938,-303.40160758,0.0001161,2]
[326828003,1715469031947,-11.96114263,0.00011698,2]
[326828004,1715469031975,-143.03885737,0.00011698,2]
[326828005,1715469031984,-155.0,0.00011698,2]
[326828006,1715469031993,-250.0,0.00011852,2]
[326828007,1715469032001,-10000.0,0.00011852,2]
[326828008,1715469032011,-250.0,0.00011857,2]
[326828009,1715469032020,-400.96,0.00011893,2]
[326828010,1715469032029,-241.55,0.00011903,2]
[326828012,1715469032038,-2153.47,0.00011904,2]
[326828014,1715469032047,-314.99395963,0.00011913,2]
[326828016,1715469032059,-284.04604037,0.00011913,2]
[326828018,1715469032068,-150.0,0.00011999,2]
[326828020,1715469032077,-834.71778866,0.00012,2]
[326828022,1715469032088,-700.08093092,0.00012,2]
[326828025,1715469032142,-1700.0,0.00012,2]
[326828026,1715469032154,-8220.59378312,0.00012,2]
[326828027,1715469032163,-210.24,0.00012121,2]
[326828028,1715469032175,-499.99,0.00012121,2]
[326828030,1715469032184,-150.0,0.00012732,2]
[326828032,1715469032194,-150.0,0.00012732,2]
[326828034,1715469032203,-278.61431404,0.00012732,2]
[326828036,1715469032214,-150.0,0.00012736,2]
[326828038,1715469032223,-150.0,0.00012743,2]
[326828040,1715469032233,-150.0,0.00012747,2]
[326828042,1715469032242,-395.72589849,0.00012747,2]
[326828043,1715469032252,-300.0,0.00012753,2]
[326828044,1715469032261,-300.0,0.00012762,2]
[326828045,1715469032271,-193.12,0.00012763,2]
[326828046,1715469032280,-300.0,0.00012782,2]
[326828047,1715469032290,-300.0,0.00012796,2]
[326828048,1715469032299,-300.0,0.00012797,2]
[326828049,1715469032309,-150.0,0.00012809,2]
[326828050,1715469032319,-150.0,0.00012821,2]
[326828051,1715469032328,-300.0,0.00012842,2]
[326828052,1715469032338,-150.0,0.00012856,2]
[326828053,1715469032348,-300.0,0.00012858,2]
[326828054,1715469032358,-300.0,0.00012861,2]
[326828055,1715469032367,-2618.39234613,0.00012869,2]
[326828056,1715469032380,-3300.83549029,0.00012869,2]
[326828065,1715469037821,-2777.52726293,0.00012869,2]
[326828066,1715469037831,-152.31829643,0.00012869,2]
[326828067,1715469037840,-150.0,0.00012883,2]
[326828068,1715469037851,-300.0,0.00012885,2]
[326828069,1715469037859,-300.0,0.00012886,2]
[326828070,1715469037868,-200.0,0.00012896,2]
[326828071,1715469037877,-200.0,0.00012896,2]
[326828072,1715469037886,-336.75213487,0.000129,2]
[326828073,1715469037895,-174.76024923,0.000129,2]
[326828074,1715469037904,-5919.28649653,0.000129,2]
[326828075,1715469038154,-753.66888814,0.000129,2]
[326828076,1715469038164,-743.06800092,0.000129,2]
[326828077,1715469038173,-1698.47918697,0.000129,2]
[326828078,1715469038184,-311.45359527,0.000129,2]
[326828079,1715469038195,-300.1179713,0.000129,2]
[326828080,1715469038204,-572.62112873,0.000129,2]
[326828081,1715469038213,-1611.54677146,0.000129,2]
[326828082,1715469038223,-166.37033722,0.00012911,2]
[326828083,1715469038231,-300.0,0.0001293,2]
[326828084,1715469038240,-300.0,0.00012936,2]
[326828085,1715469038249,-300.0,0.00012936,2]
[326828086,1715469038259,-150.0,0.00012937,2]
[326828087,1715469038268,-150.0,0.00012937,2]
[326828088,1715469038277,-212.64887244,0.00012939,2]
[326828089,1715469038290,-87.35112756,0.00012939,2]
[326828090,1715469038300,-300.0,0.00012944,2]
[326828091,1715469038308,-300.0,0.00012945,2]
[326828092,1715469038318,-150.0,0.0001295,2]
[326828093,1715469038327,-300.0,0.00012961,2]
[326828094,1715469038336,-300.0,0.0001297,2]
[326828095,1715469038345,-150.0,0.00012972,2]
[326828096,1715469038355,-300.0,0.00012974,2]
[326828097,1715469038364,-173.232684,0.00012976,2]
[326828098,1715469038398,-126.767316,0.00012976,2]
[326828099,1715469038408,-263.44389679,0.00012978,2]
[326828119,1715469039996,-300.0,0.00012979,2]
[326828121,1715469040006,-150.0,0.00012984,2]
[326828122,1715469040016,-204.39093866,0.0001299,2]
[326828124,1715469040026,-204.39093866,0.0001299,2]
[326828126,1715469040036,-155.0,0.00012993,2]
[326828127,1715469040046,-167.7191493,0.00012993,2]
[326828129,1715469040056,-5268.05984229,0.00012993,2]
[326828131,1715469040067,-1998.29813568,0.00012993,2]
[326828133,1715469040077,-262.75159511,0.00012993,2]
[326828135,1715469040087,-177.68872852,0.00012993,2]
[326828136,1715469040097,-2617.54498318,0.00012994,2]
[326828138,1715469040109,-481.25372817,0.00012994,2]
[326828140,1715469040125,-272.21575704,0.00012994,2]
[326828142,1715469040136,-271.86405043,0.00012994,2]
[326828144,1715469040145,-2185.73081459,0.00012994,2]
[326828146,1715469040155,-473.3598996,0.00012995,2]
[326828148,1715469040167,-424.6596392,0.00012995,2]
[326828149,1715469040177,-986.48412694,0.00012995,2]
[326828150,1715469040188,-509.999985,0.00012995,2]
[326828151,1715469040202,-290.77689149,0.00012995,2]
[326828152,1715469040225,-3573.359008,0.00012995,2]
[326828153,1715469040237,-29.52052007,0.00012995,2]
[326828154,1715469040247,-246.47947993,0.00012998,2]
[326828155,1715469040258,-43.22364439,0.00012998,2]
[326828156,1715469040268,-208.17791052,0.00012998,2]
[326828157,1715469040277,-303.88844509,0.00012998,2]
[326828158,1715469040291,-6904.84826259,0.00012998,2]
[326828159,1715469040300,-4270.37766422,0.00012998,2]
[326828160,1715469040310,-709.85225591,0.00012998,2]
[326828161,1715469040320,-2183.14103205,0.00012998,2]
[326828162,1715469040329,-534.842708,0.00012998,2]
[326828163,1715469040339,-155.85062154,0.00012998,2]
[326828164,1715469040349,-706.5074025,0.00012998,2]
[326828165,1715469040359,-305.72421467,0.00012998,2]
[326828166,1715469040368,-155.09721873,0.00012998,2]
[326828167,1715469040377,-239.03568109,0.00012998,2]
[326828168,1715469040387,-155.0,0.00012998,2]
[326828169,1715469040396,-155.54694532,0.00012998,2]
[326828170,1715469040406,-372.66134927,0.00012999,2]
[326828171,1715469040416,-156.0846489,0.00012999,2]
[326828172,1715469040425,-155.0,0.00012999,2]
[326828173,1715469040434,-155.0,0.00012999,2]
[326828174,1715469040443,-274.96185603,0.00012999,2]
[326828175,1715469040453,-317.4316254,0.00012999,2]
[326828176,1715469040463,-206.95664151,0.00012999,2]
[326828177,1715469040472,-323.79914288,0.00012999,2]
[326828178,1715469040482,-157.51876589,0.00012999,2]
[326828179,1715469040491,-159.6029597,0.00012999,2]
[326828180,1715469040501,-558.92801314,0.00012999,2]
[326828181,1715469040511,-237.17351593,0.00012999,2]
[326828182,1715469040520,-202.95205559,0.00012999,2]
[326828183,1715469040530,-1219.69401358,0.00012999,3]
[326828184,1715469040540,-11807.71562557,0.00013,2]
[326828185,1715469040551,-2532.92399336,0.00013,2]
[326828186,1715469040758,-290.82,0.00013,2]
[326828187,1715469040770,-1088.3299892,0.00013,2]
[326828188,1715469040782,-282.24415,0.00013,2]
[326828189,1715469040794,-354.72788086,0.00013,2]
[326828190,1715469040806,-348.49967892,0.00013,2]
[326828191,1715469040818,-1819.99999776,0.00013,2]
[326828192,1715469040876,-32840.2738954,0.00013,2]
[326828193,1715469041807,-1904.17342549,0.00013,2]
[326828194,1715469041820,-8102.55812948,0.00013,2]
[326828195,1715469041832,-250.5,0.00013,2]
[326828196,1715469041844,-260.59,0.00013,2]
[326828197,1715469041856,-3170.32060532,0.00013,2]
[326828198,1715469041868,-2801.81458229,0.00013,2]
[326828199,1715469041879,-4805.03058776,0.00013,2]
[326828200,1715469041921,-30515.03757873,0.00013,2]
[326828202,1715469042474,-3579.43116206,0.00013,2]
[326828203,1715469042487,-2011.22327998,0.00013,2]
[326828205,1715469042499,-765.90518705,0.00013,2]
[326828207,1715469042512,-1132.6290311,0.00013,2]
[326828219,1715469043560,-240.02526848,0.000129,2]
[326828220,1715469043569,-1228.76997805,0.00013,2]
[326828221,1715469043581,-6700.5,0.00013,2]
[326828222,1715469043592,-82566.87598,0.00013,2]
[326828223,1715469043601,-53000.0,0.00013,2]
[326828224,1715469043611,-987882.60978184,0.00013,2]
[326828225,1715469043622,-632.14176,0.00013,2]
[326828226,1715469043633,-585.6714285,0.00013,2]
[326828227,1715469043645,-757.45058583,0.00013,2]
[326828228,1715469043657,-409.79455518,0.00013,2]
[326828229,1715469043669,-711584.32914818,0.00013,2]
[326828230,1715469043678,-999.0,0.00013,2]
[326828231,1715469043688,-2100.0,0.00013,2]
[326828232,1715469043697,-188.77835514,0.00013,2]
[326828233,1715469043707,-343.45363572,0.00013,2]
[326828234,1715469043716,-2000.0,0.00013,2]
[326828235,1715469043726,-2000.0,0.00013,2]
[326828236,1715469043735,-200.0,0.00013,2]
[326828237,1715469043745,-114694.69764103,0.00013,2]
[326828238,1715469043756,-379.8275001,0.00013,2]
[326828239,1715469043768,-404.4777495,0.00013,2]
[326828240,1715469043784,-935.21484251,0.00013,2]
[326828241,1715469043797,-1401.6000012,0.00013,2]
[326828242,1715469043809,-1832.24239567,0.00013,2]
[326828243,1715469043821,-259.81768672,0.00013,2]
[326828244,1715469043832,-1966.65077062,0.00013,2]
[326828245,1715469043844,-1250.0,0.00013,2]
[326828246,1715469043855,-400.0,0.00013,2]
[326828247,1715469043866,-337.65,0.00013,2]
[326828248,1715469043879,-41223.20385377,0.00013,2]
[326828249,1715469043889,-2221.03993,0.00013,2]
[326828250,1715469043901,-865.00999,0.00013,2]
[326828251,1715469043939,-516.13624671,0.00013,2]
[326828252,1715469043969,-336.95839996,0.00013,2]
[326828253,1715469043981,-8157.50752835,0.00013,2]
[326828254,1715469043992,-3057.42688,0.00013,2]
[326828255,1715469044004,-1798.07131388,0.00013,2]
[326828259,1715469045761,-3025.55522352,0.00012999,2]
[326828260,1715469045771,-12232.75889809,0.00013,2]
[326828261,1715469045783,-626.5,0.00013,2]
[326828262,1715469045794,-994.19092379,0.00013,2]
[326828263,1715469045805,-3352.69443134,0.00013,2]
[326828264,1715469045816,-37181.62119711,0.00013,2]
[326828265,1715469045914,-1556.7999962,0.00013,2]
[326828266,1715469045925,-3462.62223728,0.00013,2]
[326828267,1715469045936,-1013.92560801,0.00013,2]
[326828268,1715469045947,-291.2772942,0.00013,2]
[326828269,1715469045958,-414.6469481,0.00013,2]
[326828270,1715469046071,-500.0,0.00013,2]
[326828271,1715469046083,-409.20495899,0.00013,2]
[326828272,1715469046094,-314.23016228,0.00013,2]
[326828273,1715469046106,-9426.15,0.00013,2]
[326828274,1715469046121,-310.00217,0.00013,2]
[326828275,1715469046135,-605.50432414,0.00013,2]
[326828276,1715469046146,-35517.92085846,0.00013,2]
[326828277,1715469046159,-4100.0,0.00013,2]
[326828278,1715469046171,-527.62,0.00013,2]
[326828279,1715469046182,-2678.34680619,0.00013,2]
[326828284,1715469709284,1832.23,0.00010887,2]
[326828285,1715469743093,9083.89932567,0.000111,2]
[326828286,1715469762872,200.0,0.00010952,2]
[326828287,1715469802174,150.0,0.00010959,2]
[326828288,1715469804421,304.56,0.00010935,2]
[326828289,1715469805467,20204.30105916,0.00010952,2]
[326828290,1715469825492,772.48388813,0.00010952,2]
[326828291,1715469852231,320.77,0.00010938,2]
[326828292,1715469868864,1662.72,0.00010932,2]
[326828293,1715469871309,109696.50208355,0.00010952,2]
[326828294,1715469871907,-235.42200731,0.00010952,2]